Name,Sub Group,Service Area's,Expense Type,Narrative,Date,Transaction Number,Amount,Supplier Name,Supplier Ref,Period,Year
Allerdale Borough Council,16300,Supplies & Services,Tourism Incentive,Budget-Miscellaneous,07/10/2020,469939,12750,LAKE DISTRICT NATIONAL PARK AUTHORITY,A00415,7,2020
Allerdale Borough Council,16300,Supplies & Services,Tourism Incentive,Budget-Miscellaneous,07/10/2020,469940,1035,ECLECTIC CREATIVE LIMITED,A02179,7,2020
Allerdale Borough Council,12202,Premises,Corporate Property Maintenance,Electrical Repairs and Service,14/10/2020,469941,599.7,SUPREME IMPORTS T/A LED HUT LTD,A02794,7,2020
Allerdale Borough Council,15811,Supplies & Services,IT Services,Software Maintenance,07/10/2020,469942,2975.04,PHOENIX SOFTWARE LTD,A00229,7,2020
Allerdale Borough Council,15810,Supplies & Services,Arcus,Software Licences,14/10/2020,469943,5760,ARCUS GLOBAL LTD,A02496,7,2020
Allerdale Borough Council,20150,Third Party Payments,Footway Lighting Scheme,General Partnership Service Fees,14/10/2020,469944,667.13,ELECTRICITY NORTH WEST LTD,A00471,7,2020
Allerdale Borough Council,12101,Premises,Harrington Harbour,External Maintenance & Decoration,07/10/2020,469945,100,IAN WILSON HAULAGE LIMITED,A01278,7,2020
Allerdale Borough Council,12201,Premises,Multi Storey Car Park Utilities & Maint,Internal Maintenance,21/10/2020,469946,318,TIVOLI GROUP LTD,A02568,7,2020
Allerdale Borough Council,15402,Supplies & Services,Multi-functional Printers,Photocopier Charges,07/10/2020,469947,167.16,KONICA MINOLTA BUSINESS SOLUTIONS UK LTD,A01556,7,2020
Allerdale Borough Council,15402,Supplies & Services,Multi-functional Printers,Photocopier Charges,07/10/2020,469948,138.18,KONICA MINOLTA BUSINESS SOLUTIONS UK LTD,A01556,7,2020
Allerdale Borough Council,12307,Premises,Corporate Property Maintenance,Fixtures and Fittings,07/10/2020,469949,150.75,THYSSENKRUPP ELEVATOR UK LTD,C00072,7,2020
Allerdale Borough Council,12101,Premises,Harrington Harbour,External Maintenance & Decoration,07/10/2020,469950,195,W G MACKAY LTD,A01711,7,2020
Allerdale Borough Council,15101,Supplies & Services,Corporate Property Maintenance,Equipment Costs,07/10/2020,469951,960,CENTRIC OFFICE SOLUTIONS,A00065,7,2020
Allerdale Borough Council,99900,Suspense Acc,9599,Budget - SUSPENSE,07/10/2020,469952,7.34,Redacted information - included personal information ,R00044,7,2020
Allerdale Borough Council,99900,Suspense Acc,9599,Budget - SUSPENSE,07/10/2020,469953,10,Redacted information - included personal information ,R00044,7,2020
Allerdale Borough Council,99900,Suspense Acc,9599,Budget - SUSPENSE,07/10/2020,469954,10,Redacted information - included personal information ,R00044,7,2020
Allerdale Borough Council,15101,Supplies & Services,Off-street - Owned,Equipment Costs,07/10/2020,469955,356,FIRPRESS PRINTERS,A00063,7,2020
Allerdale Borough Council,20100,Third Party Payments,Trade Waste,Budget-Partnership Services,07/10/2020,469956,27119.1,CUMBRIA CC,A00066,7,2020
Allerdale Borough Council,15100,Supplies & Services,Domestic Abuse Funding,"Budget-Equipment, Furniture & Materials",07/10/2020,469957,685,Redacted information - included personal information ,A02793,7,2020
Allerdale Borough Council,15100,Supplies & Services,Domestic Abuse Funding,"Budget-Equipment, Furniture & Materials",07/10/2020,469958,370,Redacted information - included personal information ,C00162,7,2020
Allerdale Borough Council,10202,Employee Costs,Human Resources Pay Group,Medical Screening,07/10/2020,469959,50,LIZ HUNTER PHYSIOTHERAPY LTD,A02799,7,2020
Allerdale Borough Council,12405,Premises,Homelessness,Rentals and Lease Charges,07/10/2020,469960,1250,HOME GROUP LTD,A00423,7,2020
Allerdale Borough Council,10601,Employee Costs,Training,External Courses & Seminar Fees,28/10/2020,469961,250,INSTITUTE OF CEMETERY & CREMATORIUM MANAGEMENT,A00958,7,2020
Allerdale Borough Council,10401,Employee Costs,Housing Improvement,Agency Staff Costs,07/10/2020,469962,806.25,G2 RECRUITMENT SOLUTIONS LTD,C00198,7,2020
Allerdale Borough Council,15101,Supplies & Services,Multi-storey Car Park,Equipment Costs,21/10/2020,469963,360,METRIC GROUP LTD,A00568,7,2020
Allerdale Borough Council,15101,Supplies & Services,Confidential Waste,Equipment Costs,07/10/2020,469964,376,J DUFFY LTD,A01846,7,2020
Allerdale Borough Council,20150,Third Party Payments,Workington Hall Repairs,General Partnership Service Fees,07/10/2020,469965,4281.25,MOSEDALE GILLATT ARCHITECTS,A01020,7,2020
Allerdale Borough Council,20150,Third Party Payments,Workington Hall Repairs,General Partnership Service Fees,07/10/2020,469966,1826,MOSEDALE GILLATT ARCHITECTS,A01020,7,2020
Allerdale Borough Council,10114,Employee Costs,Planning and Development,Agency to Cover Established Post,07/10/2020,469967,362.93,ADECCO RECRUITMENT,A00188,7,2020
Allerdale Borough Council,12405,Premises,COVID-19 - Homelessness,Rentals and Lease Charges,07/10/2020,469968,490,READ GUESTHOUSE,A02591,7,2020
Allerdale Borough Council,12405,Premises,COVID-19 - Homelessness,Rentals and Lease Charges,07/10/2020,469969,660,READ GUESTHOUSE,A02591,7,2020
Allerdale Borough Council,12405,Premises,COVID-19 - Homelessness,Rentals and Lease Charges,07/10/2020,469970,490,READ GUESTHOUSE,A02591,7,2020
Allerdale Borough Council,12405,Premises,COVID-19 - Homelessness,Rentals and Lease Charges,07/10/2020,469971,385,READ GUESTHOUSE,A02591,7,2020
Allerdale Borough Council,12405,Premises,COVID-19 - Homelessness,Rentals and Lease Charges,07/10/2020,469972,385,CUMBERLAND HOTEL,A02415,7,2020
Allerdale Borough Council,12405,Premises,COVID-19 - Homelessness,Rentals and Lease Charges,07/10/2020,469973,315,CUMBERLAND HOTEL,A02415,7,2020
Allerdale Borough Council,12405,Premises,COVID-19 - Homelessness,Rentals and Lease Charges,07/10/2020,469974,55,CUMBERLAND HOTEL,A02415,7,2020
Allerdale Borough Council,12405,Premises,COVID-19 - Homelessness,Rentals and Lease Charges,07/10/2020,469975,385,CUMBERLAND HOTEL,A02415,7,2020
Allerdale Borough Council,12405,Premises,COVID-19 - Homelessness,Rentals and Lease Charges,07/10/2020,469976,385,CUMBERLAND HOTEL,A02415,7,2020
Allerdale Borough Council,12405,Premises,COVID-19 - Homelessness,Rentals and Lease Charges,07/10/2020,469977,385,CUMBERLAND HOTEL,A02415,7,2020
Allerdale Borough Council,12405,Premises,COVID-19 - Homelessness,Rentals and Lease Charges,07/10/2020,469978,385,CUMBERLAND HOTEL,A02415,7,2020
Allerdale Borough Council,12405,Premises,COVID-19 - Homelessness,Rentals and Lease Charges,07/10/2020,469979,385,CUMBERLAND HOTEL,A02415,7,2020
Allerdale Borough Council,12405,Premises,COVID-19 - Homelessness,Rentals and Lease Charges,07/10/2020,469980,385,CUMBERLAND HOTEL,A02415,7,2020
Allerdale Borough Council,12405,Premises,COVID-19 - Homelessness,Rentals and Lease Charges,07/10/2020,469981,315,CUMBERLAND HOTEL,A02415,7,2020
Allerdale Borough Council,12405,Premises,COVID-19 - Homelessness,Rentals and Lease Charges,07/10/2020,469982,315,CUMBERLAND HOTEL,A02415,7,2020
Allerdale Borough Council,12405,Premises,COVID-19 - Homelessness,Rentals and Lease Charges,07/10/2020,469983,385,CUMBERLAND HOTEL,A02415,7,2020
Allerdale Borough Council,12405,Premises,COVID-19 - Homelessness,Rentals and Lease Charges,07/10/2020,469984,385,CUMBERLAND HOTEL,A02415,7,2020
Allerdale Borough Council,12405,Premises,COVID-19 - Homelessness,Rentals and Lease Charges,07/10/2020,469985,495,CUMBERLAND HOTEL,A02415,7,2020
Allerdale Borough Council,12405,Premises,COVID-19 - Homelessness,Rentals and Lease Charges,07/10/2020,469986,385,CUMBERLAND HOTEL,A02415,7,2020
Allerdale Borough Council,12405,Premises,COVID-19 - Homelessness,Rentals and Lease Charges,07/10/2020,469987,525,CUMBERLAND HOTEL,A02415,7,2020
Allerdale Borough Council,12405,Premises,COVID-19 - Homelessness,Rentals and Lease Charges,07/10/2020,469988,90,CUMBERLAND HOTEL,A02415,7,2020
Allerdale Borough Council,12405,Premises,COVID-19 - Homelessness,Rentals and Lease Charges,07/10/2020,469989,385,CUMBERLAND HOTEL,A02415,7,2020
Allerdale Borough Council,12405,Premises,COVID-19 - Homelessness,Rentals and Lease Charges,07/10/2020,469990,385,CUMBERLAND HOTEL,A02415,7,2020
Allerdale Borough Council,12405,Premises,COVID-19 - Homelessness,Rentals and Lease Charges,07/10/2020,469991,385,CUMBERLAND HOTEL,A02415,7,2020
Allerdale Borough Council,12405,Premises,COVID-19 - Homelessness,Rentals and Lease Charges,07/10/2020,469992,315,CUMBERLAND HOTEL,A02415,7,2020
Allerdale Borough Council,12101,Premises,Coastal Protection and Inland Flooding,External Maintenance & Decoration,07/10/2020,469993,7582.63,SHANE TAYLOR WELDING LTD,C00238,7,2020
Allerdale Borough Council,12201,Premises,Corporate Property Maintenance,Internal Maintenance,07/10/2020,469994,840,Redacted information - included personal information ,A01607,7,2020
Allerdale Borough Council,12306,Premises,Public Convenience Cleaning,Legionella Inspections and Services,28/10/2020,469995,270,CLEARWATER TECHNOLOGY,A02153,7,2020
Allerdale Borough Council,12303,Premises,Corporate Property Maintenance,Window Cleaning,07/10/2020,469996,455,BORDERBRITE LTD,C00155,7,2020
Allerdale Borough Council,12202,Premises,Corporate Property Maintenance,Electrical Repairs and Service,07/10/2020,469997,515.9,JJ GROUP (CONTRACTING) LTD,C00038,7,2020
Allerdale Borough Council,20300,Third Party Payments,Maryport Wave,Budget-Contract Services,07/10/2020,469998,15953.33,GREENWICH LEISURE LTD,A00136,7,2020
Allerdale Borough Council,10250,Employee Costs,Corporate Recruitment,General-Employee Related Expenses,28/10/2020,469999,5.4,K&R BADGES LIMITED,A01328,7,2020
Allerdale Borough Council,12301,Premises,Corporate Property Maintenance,Security,07/10/2020,470000,93,COMPASS SERVICES GROUP,A00839,7,2020
Allerdale Borough Council,15501,Supplies & Services,Siddick Pond - Water Environment Grant,Consultants Fees,07/10/2020,470001,1960.75,WARDELL ARMSTRONG LLP,A01676,7,2020
Allerdale Borough Council,12101,Premises,Coastal Protection and Inland Flooding,External Maintenance & Decoration,07/10/2020,470002,29.98,WCF PET & EQUESTRIAN,A02275,7,2020
Allerdale Borough Council,12405,Premises,COVID-19 - Homelessness,Rentals and Lease Charges,07/10/2020,470003,385,CUMBERLAND HOTEL,A02415,7,2020
Allerdale Borough Council,12405,Premises,COVID-19 - Homelessness,Rentals and Lease Charges,07/10/2020,470004,385,CUMBERLAND HOTEL,A02415,7,2020
Allerdale Borough Council,12405,Premises,COVID-19 - Homelessness,Rentals and Lease Charges,07/10/2020,470005,385,CUMBERLAND HOTEL,A02415,7,2020
Allerdale Borough Council,12405,Premises,COVID-19 - Homelessness,Rentals and Lease Charges,07/10/2020,470006,385,CUMBERLAND HOTEL,A02415,7,2020
Allerdale Borough Council,12405,Premises,COVID-19 - Homelessness,Rentals and Lease Charges,07/10/2020,470007,385,CUMBERLAND HOTEL,A02415,7,2020
Allerdale Borough Council,12405,Premises,COVID-19 - Homelessness,Rentals and Lease Charges,07/10/2020,470008,315,CUMBERLAND HOTEL,A02415,7,2020
Allerdale Borough Council,12405,Premises,COVID-19 - Homelessness,Rentals and Lease Charges,07/10/2020,470009,385,CUMBERLAND HOTEL,A02415,7,2020
Allerdale Borough Council,12405,Premises,COVID-19 - Homelessness,Rentals and Lease Charges,07/10/2020,470010,270,CUMBERLAND HOTEL,A02415,7,2020
Allerdale Borough Council,12405,Premises,COVID-19 - Homelessness,Rentals and Lease Charges,07/10/2020,470011,405,CUMBERLAND HOTEL,A02415,7,2020
Allerdale Borough Council,12405,Premises,COVID-19 - Homelessness,Rentals and Lease Charges,07/10/2020,470012,385,CUMBERLAND HOTEL,A02415,7,2020
Allerdale Borough Council,12405,Premises,COVID-19 - Homelessness,Rentals and Lease Charges,07/10/2020,470013,385,CUMBERLAND HOTEL,A02415,7,2020
Allerdale Borough Council,12405,Premises,COVID-19 - Homelessness,Rentals and Lease Charges,07/10/2020,470014,385,CUMBERLAND HOTEL,A02415,7,2020
Allerdale Borough Council,12405,Premises,COVID-19 - Homelessness,Rentals and Lease Charges,07/10/2020,470015,315,CUMBERLAND HOTEL,A02415,7,2020
Allerdale Borough Council,12405,Premises,COVID-19 - Homelessness,Rentals and Lease Charges,07/10/2020,470016,385,CUMBERLAND HOTEL,A02415,7,2020
Allerdale Borough Council,12405,Premises,COVID-19 - Homelessness,Rentals and Lease Charges,07/10/2020,470017,385,CUMBERLAND HOTEL,A02415,7,2020
Allerdale Borough Council,12405,Premises,COVID-19 - Homelessness,Rentals and Lease Charges,07/10/2020,470018,315,CUMBERLAND HOTEL,A02415,7,2020
Allerdale Borough Council,12405,Premises,COVID-19 - Homelessness,Rentals and Lease Charges,07/10/2020,470019,275,CUMBERLAND HOTEL,A02415,7,2020
Allerdale Borough Council,12403,Premises,Corporate Property Maintenance,Gas,07/10/2020,470020,290.67,CORONA ENERGY,X00003,7,2020
Allerdale Borough Council,12403,Premises,Corporate Property Maintenance,Gas,07/10/2020,470021,61.07,CORONA ENERGY,X00003,7,2020
Allerdale Borough Council,12403,Premises,Corporate Property Maintenance,Gas,07/10/2020,470022,74.4,CORONA ENERGY,X00003,7,2020
Allerdale Borough Council,12403,Premises,Corporate Property Maintenance,Gas,07/10/2020,470023,119.42,CORONA ENERGY,X00003,7,2020
Allerdale Borough Council,12403,Premises,Corporate Property Maintenance,Gas,07/10/2020,470024,25.76,CORONA ENERGY,X00003,7,2020
Allerdale Borough Council,12403,Premises,Corporate Property Maintenance,Gas,07/10/2020,470025,108.55,CORONA ENERGY,X00003,7,2020
Allerdale Borough Council,12403,Premises,Corporate Property Maintenance,Gas,07/10/2020,470026,57.04,CORONA ENERGY,X00003,7,2020
Allerdale Borough Council,12402,Premises,Public Convenience Cleaning,Electricity,07/10/2020,470027,7.33,N POWER ,X00015,7,2020
Allerdale Borough Council,12402,Premises,Public Convenience Cleaning,Electricity,07/10/2020,470028,25.5,N POWER ,X00015,7,2020
Allerdale Borough Council,12402,Premises,Public Convenience Cleaning,Electricity,07/10/2020,470029,12.56,N POWER ,X00015,7,2020
Allerdale Borough Council,12402,Premises,Corporate Property Maintenance,Electricity,07/10/2020,470030,7.33,N POWER ,X00015,7,2020
Allerdale Borough Council,12402,Premises,Corporate Property Maintenance,Electricity,07/10/2020,470031,64.76,N POWER ,X00015,7,2020
Allerdale Borough Council,12402,Premises,Corporate Property Maintenance,Electricity,07/10/2020,470032,8.35,N POWER ,X00015,7,2020
Allerdale Borough Council,12402,Premises,Corporate Property Maintenance,Electricity,07/10/2020,470033,22.45,N POWER ,X00015,7,2020
Allerdale Borough Council,12402,Premises,Corporate Property Maintenance,Electricity,07/10/2020,470034,8.2,N POWER ,X00015,7,2020
Allerdale Borough Council,12402,Premises,Corporate Property Maintenance,Electricity,07/10/2020,470035,131.49,N POWER ,X00015,7,2020
Allerdale Borough Council,12402,Premises,Corporate Property Maintenance,Electricity,07/10/2020,470036,10.82,N POWER ,X00015,7,2020
Allerdale Borough Council,12402,Premises,Corporate Property Maintenance,Electricity,07/10/2020,470037,53.13,N POWER ,X00015,7,2020
Allerdale Borough Council,12402,Premises,Corporate Property Maintenance,Electricity,07/10/2020,470038,58.98,N POWER ,X00015,7,2020
Allerdale Borough Council,12402,Premises,Homelessness,Electricity,07/10/2020,470039,42.5,N POWER ,X00015,7,2020
Allerdale Borough Council,12402,Premises,Homelessness,Electricity,07/10/2020,470040,22.34,N POWER ,X00015,7,2020
Allerdale Borough Council,12402,Premises,Homelessness,Electricity,07/10/2020,470041,27.64,N POWER ,X00015,7,2020
Allerdale Borough Council,12402,Premises,Homelessness,Electricity,07/10/2020,470042,7.74,N POWER ,X00015,7,2020
Allerdale Borough Council,12402,Premises,Homelessness,Electricity,07/10/2020,470043,55.06,N POWER ,X00015,7,2020
Allerdale Borough Council,12402,Premises,Homelessness,Electricity,07/10/2020,470044,20.51,N POWER ,X00015,7,2020
Allerdale Borough Council,12402,Premises,Homelessness,Electricity,07/10/2020,470045,15.06,N POWER ,X00015,7,2020
Allerdale Borough Council,12402,Premises,Homelessness,Electricity,07/10/2020,470046,18.09,N POWER ,X00015,7,2020
Allerdale Borough Council,12402,Premises,Public Convenience Cleaning,Electricity,07/10/2020,470047,19.52,N POWER ,X00015,7,2020
Allerdale Borough Council,12402,Premises,Car Parks Inspection & Maintenance,Electricity,07/10/2020,470048,11.4,N POWER ,X00015,7,2020
Allerdale Borough Council,12402,Premises,Multi Storey Car Park Utilities & Maint,Electricity,07/10/2020,470049,7.33,N POWER ,X00015,7,2020
Allerdale Borough Council,12402,Premises,Public Convenience Cleaning,Electricity,07/10/2020,470050,9.37,N POWER ,X00015,7,2020
Allerdale Borough Council,12402,Premises,Corporate Property Maintenance,Electricity,07/10/2020,470051,6.31,N POWER ,X00015,7,2020
Allerdale Borough Council,12402,Premises,Corporate Property Maintenance,Electricity,07/10/2020,470052,672.9,N POWER ,X00015,7,2020
Allerdale Borough Council,12402,Premises,Multi Storey Car Park Utilities & Maint,Electricity,07/10/2020,470053,8.49,N POWER ,X00015,7,2020
Allerdale Borough Council,12402,Premises,Public Convenience Cleaning,Electricity,07/10/2020,470054,52.11,N POWER ,X00015,7,2020
Allerdale Borough Council,12402,Premises,Homelessness,Electricity,07/10/2020,470055,28.63,N POWER ,X00015,7,2020
Allerdale Borough Council,12402,Premises,Public Convenience Cleaning,Electricity,07/10/2020,470056,16.2,N POWER ,X00015,7,2020
Allerdale Borough Council,12402,Premises,Corporate Property Maintenance,Electricity,07/10/2020,470057,414.64,N POWER ,X00015,7,2020
Allerdale Borough Council,15804,Supplies & Services,IT Services,Computer Data Lines B.T.,28/10/2020,470058,1050.83,VAIONI GROUP LTD,A02471,7,2020
Allerdale Borough Council,15804,Supplies & Services,IT Services,Computer Data Lines B.T.,28/10/2020,470059,1114.02,VODAFONE,A00934,7,2020
Allerdale Borough Council,15508,Supplies & Services,Planning and Development,Subscriptions,07/10/2020,470060,2200,HAYMARKET MEDIA GROUP,A00724,7,2020
Allerdale Borough Council,15811,Supplies & Services,IT Services,Software Maintenance,22/10/2020,470061,1177.58,BARCLAYCARD COMMERCIAL ,X00207,7,2020
Allerdale Borough Council,15811,Supplies & Services,IT Services,Software Maintenance,22/10/2020,470062,2151.14,BARCLAYCARD COMMERCIAL ,X00207,7,2020
Allerdale Borough Council,15811,Supplies & Services,IT Services,Software Maintenance,22/10/2020,470063,2598.96,BARCLAYCARD COMMERCIAL ,X00207,7,2020
Allerdale Borough Council,15811,Supplies & Services,IT Services,Software Maintenance,23/10/2020,470064,1520.74,BARCLAYCARD COMMERCIAL ,X00207,7,2020
Allerdale Borough Council,16350,Supplies & Services,Prevention Fund,Miscellaneous Expenses,07/10/2020,470065,86.93,HOME GROUP LTD,M00999,7,2020
Allerdale Borough Council,20150,Third Party Payments,Managed Car Parks,General Partnership Service Fees,07/10/2020,470066,29662.55,E H BOOTH & CO LIMITED,A00919,7,2020
Allerdale Borough Council,20150,Third Party Payments,Managed Car Parks,General Partnership Service Fees,07/10/2020,470067,29700.3,KESWICK MINISTRIES,A02390,7,2020
Allerdale Borough Council,20150,Third Party Payments,Managed Car Parks,General Partnership Service Fees,07/10/2020,470068,13309.55,MARYPORT HARBOUR & MARINA LIMITED ,A00186,7,2020
Allerdale Borough Council,15501,Supplies & Services,Sports Development,Consultants Fees,07/10/2020,470069,500,COCKERMOUTH SWIMMING CLUB,M00527,7,2020
Allerdale Borough Council,54105,Capital Expenditure,Disabled Facilities Grants,Grants  Private Individuals (Capital),07/10/2020,470070,250,A & M STORAGE LTD,X00308,7,2020
Allerdale Borough Council,54105,Capital Expenditure,Disabled Facilities Grants,Grants  Private Individuals (Capital),07/10/2020,470071,714,HOME GROUP LTD,M01586,7,2020
Allerdale Borough Council,16350,Supplies & Services,Leaders Portfolio,Miscellaneous Expenses,07/10/2020,470072,8750,SEATON SCOUT GROUP,M01782,7,2020
Allerdale Borough Council,16300,Supplies & Services,Tourism Incentive,Budget-Miscellaneous,07/10/2020,470093,48.5,Redacted information - included personal information ,M01922,7,2020
Allerdale Borough Council,20304,Third Party Payments,Recycling,Contract Services-Recycling,07/10/2020,470094,665831,ALLERDALE WASTE SERVICES LIMITED,A02756,7,2020
Allerdale Borough Council,15501,Supplies & Services,Building Control - Chargeable,Consultants Fees,07/10/2020,470095,90,M&P GADSDEN CONSULTING ENGINEERS LTD,A02713,7,2020
Allerdale Borough Council,20150,Third Party Payments,Festivals & Events,General Partnership Service Fees,07/10/2020,470096,50,POD (NORTH WEST) LIMITED,A01977,7,2020
Allerdale Borough Council,50000,Capital Expenditure,Markets - plant and equipment,Capital Programme,07/10/2020,470097,356.73,PRO FOLDING LTD,A02797,7,2020
Allerdale Borough Council,10401,Employee Costs,Housing Improvement,Agency Staff Costs,07/10/2020,470098,1480,G2 RECRUITMENT SOLUTIONS LTD,C00198,7,2020
Allerdale Borough Council,10601,Employee Costs,Training,External Courses & Seminar Fees,21/10/2020,470099,1999,ENGAGING MINDS LIMITED,A02800,7,2020
Allerdale Borough Council,33138,Income,Markets,Market Stalls,14/10/2020,470100,286.63,KESWICK TOURISM ASSOCIATION,A01882,7,2020
Allerdale Borough Council,12300,Premises,Markets,Budget-Facilities Management,07/10/2020,470101,5400,Redacted information - included personal information ,A02801,7,2020
Allerdale Borough Council,15810,Supplies & Services,Arcus,Software Licences,21/10/2020,470102,1624,ARCUS GLOBAL LTD,A02496,7,2020
Allerdale Borough Council,15804,Supplies & Services,IT Services,Computer Data Lines B.T.,28/10/2020,470103,45,VAIONI GROUP LTD,A02471,7,2020
Allerdale Borough Council,15810,Supplies & Services,IT Services,Software Licences,28/10/2020,470104,2688,IAM TECHNOLOGY GROUP LTD,A02699,7,2020
Allerdale Borough Council,15813,Supplies & Services,Arcus,Software Miscellaneous,28/10/2020,470105,8500,ARCUS GLOBAL LTD,A02496,7,2020
Allerdale Borough Council,15810,Supplies & Services,IT Services,Software Licences,21/10/2020,470106,171.6,LOGMEIN TECHNOLOGIES UK TD,A02565,7,2020
Allerdale Borough Council,12300,Premises,Markets,Budget-Facilities Management,07/10/2020,470107,5500,Redacted information - included personal information ,A02803,7,2020
Allerdale Borough Council,15101,Supplies & Services,Off-street - Owned,Equipment Costs,14/10/2020,470109,120.77,RELIANCE HIGH-TECH LTD,C00123,7,2020
Allerdale Borough Council,15101,Supplies & Services,Off-street - Owned,Equipment Costs,28/10/2020,470110,895.48,METRIC GROUP LTD,A00568,7,2020
Allerdale Borough Council,15506,Supplies & Services,Street Scene,Professional Services,21/10/2020,470111,750,CGDM LTD,A02720,7,2020
Allerdale Borough Council,15506,Supplies & Services,Street Scene,Professional Services,21/10/2020,470112,750,CGDM LTD,A02720,7,2020
Allerdale Borough Council,15401,Supplies & Services,COVID19 - General Costs,General Stationery,21/10/2020,470113,66.98,LYRECO,A00043,7,2020
Allerdale Borough Council,15401,Supplies & Services,Corporate Postage and Stationary,General Stationery,21/10/2020,470114,78.07,LYRECO,A00043,7,2020
Allerdale Borough Council,15401,Supplies & Services,Corporate Postage and Stationary,General Stationery,21/10/2020,470115,264.98,LYRECO,A00043,7,2020
Allerdale Borough Council,12101,Premises,Street Naming and Numbering,External Maintenance & Decoration,07/10/2020,470116,241,Redacted information - included personal information ,A00176,7,2020
Allerdale Borough Council,10401,Employee Costs,Licensing Agency Staff,Agency Staff Costs,07/10/2020,470117,500.03,ADECCO RECRUITMENT,A00188,7,2020
Allerdale Borough Council,15401,Supplies & Services,Corporate Postage and Stationary,General Stationery,21/10/2020,470118,19.97,LYRECO,A00043,7,2020
Allerdale Borough Council,15401,Supplies & Services,COVID19 - General Costs,General Stationery,21/10/2020,470119,66.98,LYRECO,A00043,7,2020
Allerdale Borough Council,10110,Employee Costs,Busy Bees Childcare Scheme,Salary Sacrifice,14/10/2020,470120,18.15,COMPUTERSHARE VOUCHER SERVICES,A00991,7,2020
Allerdale Borough Council,12405,Premises,Homelessness,Rentals and Lease Charges,07/10/2020,470121,1179.75,CASTLES & COASTS HOUSING ASSOCIATION LTD,A02465,7,2020
Allerdale Borough Council,10110,Employee Costs,Busy Bees Childcare Scheme,Salary Sacrifice,14/10/2020,470122,330,COMPUTERSHARE VOUCHER SERVICES,A00991,7,2020
Allerdale Borough Council,15501,Supplies & Services,Building Control - Chargeable,Consultants Fees,07/10/2020,470123,1500,ASHCROFT DEMOLITION (CUMBRIA) LTD,C00197,7,2020
Allerdale Borough Council,15501,Supplies & Services,Building Control - Chargeable,Consultants Fees,07/10/2020,470124,1000,ASHCROFT DEMOLITION (CUMBRIA) LTD,C00197,7,2020
Allerdale Borough Council,15405,Supplies & Services,Planning Policy,Use of External Printers,07/10/2020,470125,141.5,PRINT POINT CARLISLE LTD,A02494,7,2020
Allerdale Borough Council,15101,Supplies & Services,Street Scene,Equipment Costs,14/10/2020,470126,37.16,RELIANCE HIGH-TECH LTD,C00123,7,2020
Allerdale Borough Council,15101,Supplies & Services,Customer Services Pay Group,Equipment Costs,14/10/2020,470127,18.58,RELIANCE HIGH-TECH LTD,C00123,7,2020
Allerdale Borough Council,10202,Employee Costs,Human Resources Pay Group,Medical Screening,07/10/2020,470128,45,LIZ HUNTER PHYSIOTHERAPY LTD,A02799,7,2020
Allerdale Borough Council,10601,Employee Costs,Training,External Courses & Seminar Fees,21/10/2020,470129,135,LAVAT CONSULTING LTD ,A02544,7,2020
Allerdale Borough Council,10601,Employee Costs,Training,External Courses & Seminar Fees,21/10/2020,470130,135,LAVAT CONSULTING LTD ,A02544,7,2020
Allerdale Borough Council,15405,Supplies & Services,Planning Policy,Use of External Printers,07/10/2020,470131,233,PRINT POINT CARLISLE LTD,A02494,7,2020
Allerdale Borough Council,15510,Supplies & Services,Street Cleansing,Disposal of Waste,07/10/2020,470132,18.5,DUNDAS CHEMICAL CO ,A00175,7,2020
Allerdale Borough Council,15601,Supplies & Services,Electoral Registration,Postage,07/10/2020,470133,35.81,ROYAL MAIL LETTERS,X00021,7,2020
Allerdale Borough Council,12402,Premises,Corporate Property Maintenance,Electricity,07/10/2020,470134,2323.14,N POWER ,X00015,7,2020
Allerdale Borough Council,12402,Premises,Multi Storey Car Park Utilities & Maint,Electricity,07/10/2020,470135,1650.87,N POWER ,X00015,7,2020
Allerdale Borough Council,12402,Premises,Corporate Property Maintenance,Electricity,07/10/2020,470136,1323.19,N POWER ,X00015,7,2020
Allerdale Borough Council,10110,Employee Costs,Customer & Transformation Programme,Salary Sacrifice,07/10/2020,470137,1426.26,TUSKERDIRECT LTD,A02186,7,2020
Allerdale Borough Council,12408,Premises,Public Convenience Cleaning,Water & Sewage,07/10/2020,470138,79.57,SCOTTISH WATER BUSINESS STREAM LTD,X00271,7,2020
Allerdale Borough Council,12408,Premises,Corporate Property Maintenance,Water & Sewage,07/10/2020,470139,789,SCOTTISH WATER BUSINESS STREAM LTD,X00271,7,2020
Allerdale Borough Council,12408,Premises,Corporate Property Maintenance,Water & Sewage,07/10/2020,470140,4.69,SCOTTISH WATER BUSINESS STREAM LTD,X00271,7,2020
Allerdale Borough Council,12408,Premises,Corporate Property Maintenance,Water & Sewage,07/10/2020,470141,51.51,SCOTTISH WATER BUSINESS STREAM LTD,X00271,7,2020
Allerdale Borough Council,12408,Premises,Corporate Property Maintenance,Water & Sewage,07/10/2020,470142,-34.71,SCOTTISH WATER BUSINESS STREAM LTD,X00271,7,2020
Allerdale Borough Council,12408,Premises,Corporate Property Maintenance,Water & Sewage,07/10/2020,470143,124.35,SCOTTISH WATER BUSINESS STREAM LTD,X00271,7,2020
Allerdale Borough Council,12408,Premises,Corporate Property Maintenance,Water & Sewage,07/10/2020,470144,5.8,SCOTTISH WATER BUSINESS STREAM LTD,X00271,7,2020
Allerdale Borough Council,12408,Premises,Corporate Property Maintenance,Water & Sewage,07/10/2020,470145,29.67,SCOTTISH WATER BUSINESS STREAM LTD,X00271,7,2020
Allerdale Borough Council,12408,Premises,Public Convenience Cleaning,Water & Sewage,07/10/2020,470146,989.2,SCOTTISH WATER BUSINESS STREAM LTD,X00271,7,2020
Allerdale Borough Council,12408,Premises,Public Convenience Cleaning,Water & Sewage,07/10/2020,470147,76.49,SCOTTISH WATER BUSINESS STREAM LTD,X00271,7,2020
Allerdale Borough Council,10600,Employee Costs,Homelessness,Budget-Training,07/10/2020,470148,220,SHELTER TRAINING,A00593,7,2020
Allerdale Borough Council,20150,Third Party Payments,Festivals & Events,General Partnership Service Fees,07/10/2020,470149,135,CUMBRIA COAL LTD,A02710,7,2020
Allerdale Borough Council,14104,Transport,Public Building Cleaning,Repairs & Maintenance,07/10/2020,470150,53.67,GOODFELLOW & SONS,A00031,7,2020
Allerdale Borough Council,12305,Premises,Corporate Property Maintenance,Inspections and Services,14/10/2020,470151,237,AQUAID (NORTH),A00123,7,2020
Allerdale Borough Council,15506,Supplies & Services,Health & Well-being Group,Professional Services,14/10/2020,470152,20,Redacted information - included personal information ,A02802,7,2020
Allerdale Borough Council,12201,Premises,Corporate Property Maintenance,Internal Maintenance,14/10/2020,470153,3600,AA CARPETS LTD,C00031,7,2020
Allerdale Borough Council,20150,Third Party Payments,Footway Lighting,General Partnership Service Fees,14/10/2020,470154,260,Redacted information - included personal information ,A00242,7,2020
Allerdale Borough Council,12101,Premises,Corporate Property Maintenance,External Maintenance & Decoration,14/10/2020,470155,29.25,J T ATKINSON & SONS LTD,A01652,7,2020
Allerdale Borough Council,12101,Premises,Corporate Property Maintenance,External Maintenance & Decoration,14/10/2020,470156,60,W G MACKAY LTD,A01711,7,2020
Allerdale Borough Council,15506,Supplies & Services,Lillyhall Project,Professional Services,14/10/2020,470157,390,JAF LIMITED,A02759,7,2020
Allerdale Borough Council,10600,Employee Costs,Homelessness,Budget-Training,21/10/2020,470158,220,SHELTER TRAINING,A00593,7,2020
Allerdale Borough Council,10600,Employee Costs,Homelessness,Budget-Training,21/10/2020,470159,220,SHELTER TRAINING,A00593,7,2020
Allerdale Borough Council,10114,Employee Costs,Planning and Development,Agency to Cover Established Post,14/10/2020,470160,596.81,ADECCO RECRUITMENT,A00188,7,2020
Allerdale Borough Council,12101,Premises,Public Convenience Cleaning,External Maintenance & Decoration,14/10/2020,470161,90,S K DRAINAGE SOLUTIONS LTD,A02612,7,2020
Allerdale Borough Council,15506,Supplies & Services,Communications and Marketing,Professional Services,04/11/2020,470162,2075,MICHAEL CARDER LTD,A02493,7,2020
Allerdale Borough Council,16001,Supplies & Services,Banking and Interest,Bank Charges and Fees,14/10/2020,470163,14.52,ALLPAY.NET LIMITED,A00714,7,2020
Allerdale Borough Council,16001,Supplies & Services,Banking and Interest,Bank Charges and Fees,14/10/2020,470164,22.29,ALLPAY.NET LIMITED,A00714,7,2020
Allerdale Borough Council,16001,Supplies & Services,Banking and Interest,Bank Charges and Fees,14/10/2020,470165,35.33,ALLPAY.NET LIMITED,A00714,7,2020
Allerdale Borough Council,16001,Supplies & Services,Banking and Interest,Bank Charges and Fees,14/10/2020,470166,15.74,ALLPAY.NET LIMITED,A00714,7,2020
Allerdale Borough Council,16001,Supplies & Services,Banking and Interest,Bank Charges and Fees,14/10/2020,470167,1180.84,ALLPAY.NET LIMITED,A00714,7,2020
Allerdale Borough Council,16001,Supplies & Services,Banking and Interest,Bank Charges and Fees,14/10/2020,470168,15.89,ALLPAY.NET LIMITED,A00714,7,2020
Allerdale Borough Council,16001,Supplies & Services,Banking and Interest,Bank Charges and Fees,14/10/2020,470169,10,ALLPAY.NET LIMITED,A00714,7,2020
Allerdale Borough Council,16001,Supplies & Services,Banking and Interest,Bank Charges and Fees,14/10/2020,470170,10.84,ALLPAY.NET LIMITED,A00714,7,2020
Allerdale Borough Council,16001,Supplies & Services,Banking and Interest,Bank Charges and Fees,14/10/2020,470171,10,ALLPAY.NET LIMITED,A00714,7,2020
Allerdale Borough Council,16001,Supplies & Services,Banking and Interest,Bank Charges and Fees,14/10/2020,470172,12.65,ALLPAY.NET LIMITED,A00714,7,2020
Allerdale Borough Council,12101,Premises,Coastal Protection and Inland Flooding,External Maintenance & Decoration,14/10/2020,470173,1661,ASHCROFT DEMOLITION (CUMBRIA) LTD,C00197,7,2020
Allerdale Borough Council,12101,Premises,Corporate Property Maintenance,External Maintenance & Decoration,14/10/2020,470174,685,ASHCROFT DEMOLITION (CUMBRIA) LTD,C00197,7,2020
Allerdale Borough Council,12101,Premises,Corporate Property Maintenance,External Maintenance & Decoration,14/10/2020,470175,1213,ASHCROFT DEMOLITION (CUMBRIA) LTD,C00197,7,2020
Allerdale Borough Council,12101,Premises,Corporate Property Maintenance,External Maintenance & Decoration,14/10/2020,470176,990,ASHCROFT DEMOLITION (CUMBRIA) LTD,C00197,7,2020
Allerdale Borough Council,12101,Premises,Coastal Protection and Inland Flooding,External Maintenance & Decoration,14/10/2020,470177,1333,ASHCROFT DEMOLITION (CUMBRIA) LTD,C00197,7,2020
Allerdale Borough Council,12101,Premises,Other Land & Buildings,External Maintenance & Decoration,14/10/2020,470178,1165,ASHCROFT DEMOLITION (CUMBRIA) LTD,C00197,7,2020
Allerdale Borough Council,12101,Premises,Coastal Protection and Inland Flooding,External Maintenance & Decoration,14/10/2020,470179,514,ASHCROFT DEMOLITION (CUMBRIA) LTD,C00197,7,2020
Allerdale Borough Council,12101,Premises,Corporate Property Maintenance,External Maintenance & Decoration,14/10/2020,470180,308,ASHCROFT DEMOLITION (CUMBRIA) LTD,C00197,7,2020
Allerdale Borough Council,50000,Capital Expenditure,Biodiversity & Green Infrast programmes,Capital Programme,28/10/2020,470181,2000,BOSTON SEEDS LTD,A02689,7,2020
Allerdale Borough Council,16350,Supplies & Services,Off-street - Owned,Miscellaneous Expenses,21/10/2020,470182,2283.35,3C PAYMENT LIMITED,A02382,7,2020
Allerdale Borough Council,15501,Supplies & Services,Brow Top Enhancements,Consultants Fees,14/10/2020,470183,1500,R G PARKINS & PARTNERS LTD,A02571,7,2020
Allerdale Borough Council,15102,Supplies & Services,Off-street - Owned,Equipment Repair & Maintenance,21/10/2020,470184,71.33,CHIPSIDE LIMITED,A00004,7,2020
Allerdale Borough Council,15102,Supplies & Services,Off-street - Owned,Equipment Repair & Maintenance,21/10/2020,470185,791.49,CHIPSIDE LIMITED,A00004,7,2020
Allerdale Borough Council,12405,Premises,NSAP,Rentals and Lease Charges,14/10/2020,470186,113.43,SUMMERGROVE HALLS LTD,A02766,7,2020
Allerdale Borough Council,15810,Supplies & Services,IT Services,Software Licences,14/10/2020,470187,162.8,ORDNANCE SURVEY,A00105,7,2020
Allerdale Borough Council,15101,Supplies & Services,Corporate Property Maintenance,Equipment Costs,13/10/2020,470188,332.06,BOOKER CASH & CARRY,A01419,7,2020
Allerdale Borough Council,16101,Supplies & Services,Planning and Development,Statutory Notices,28/10/2020,470189,393.12,NEWSQUEST MEDIA GROUP,A02348,7,2020
Allerdale Borough Council,15102,Supplies & Services,Electoral Registration,Equipment Repair & Maintenance,14/10/2020,470190,213.67,QUADIENT FINANCE UK LTD ,A00455,7,2020
Allerdale Borough Council,26000,Earmarked Reserves,Legal Counsel,Budget-Expd funded from Reserve,21/10/2020,470191,612.5,ST JOHNS BUILDINGS,A01647,7,2020
Allerdale Borough Council,10401,Employee Costs,Licensing Agency Staff,Agency Staff Costs,14/10/2020,470192,625.04,ADECCO RECRUITMENT,A00188,7,2020
Allerdale Borough Council,10401,Employee Costs,Housing Improvement,Agency Staff Costs,14/10/2020,470193,1480,G2 RECRUITMENT SOLUTIONS LTD,C00198,7,2020
Allerdale Borough Council,10302,Employee Costs,Pensions,Past Service Costs,28/10/2020,470194,78.27,YOUR PENSION SERVICE,A01465,7,2020
Allerdale Borough Council,15811,Supplies & Services,IT Services,Software Maintenance,16/10/2020,470195,346,SAGE (UK) LTD,A01911,7,2020
Allerdale Borough Council,15508,Supplies & Services,Localities & Partnerships,Subscriptions,28/10/2020,470196,1556,EMAP PUBLISHING LTD,A02798,7,2020
Allerdale Borough Council,10302,Employee Costs,Pensions,Past Service Costs,28/10/2020,470197,36922.95,YOUR PENSION SERVICE,A01465,7,2020
Allerdale Borough Council,10601,Employee Costs,Training,External Courses & Seminar Fees,14/10/2020,470198,30,CARLISLE CITY COUNCIL,A00161,7,2020
Allerdale Borough Council,15102,Supplies & Services,Off-street - Owned,Equipment Repair & Maintenance,21/10/2020,470199,18,METRIC GROUP LTD,A00568,7,2020
Allerdale Borough Council,15101,Supplies & Services,Street Scene,Equipment Costs,14/10/2020,470200,9.29,RELIANCE HIGH-TECH LTD,C00123,7,2020
Allerdale Borough Council,16100,Supplies & Services,Communications and Marketing,Budget-Advertising and Promotions,14/10/2020,470201,160,EWANRIGG LOCAL TRUST,M01144,7,2020
Allerdale Borough Council,15811,Supplies & Services,Shared Revs & Bens IT Costs,Software Maintenance,21/10/2020,470202,2562.5,CIVICA UK LIMITED,A00006,7,2020
Allerdale Borough Council,15601,Supplies & Services,Electoral Registration,Postage,14/10/2020,470203,2533.74,ADARE SEC LIMITED,A02306,7,2020
Allerdale Borough Council,15405,Supplies & Services,Electoral Registration,Use of External Printers,14/10/2020,470204,609.58,ADARE SEC LIMITED,A02306,7,2020
Allerdale Borough Council,12101,Premises,Corporate Property Maintenance,External Maintenance & Decoration,14/10/2020,470205,86.52,TRAVIS PERKINS ,A00742,7,2020
Allerdale Borough Council,12101,Premises,Corporate Property Maintenance,External Maintenance & Decoration,14/10/2020,470206,96.51,TRAVIS PERKINS,A00742,7,2020
Allerdale Borough Council,10302,Employee Costs,"Revenues, Benefits & Recovery Paygroup",Past Service Costs,14/10/2020,470207,151.91,YOUR PENSION SERVICE,A01465,7,2020
Allerdale Borough Council,15704,Supplies & Services,IT Services,Mobile Phones,28/10/2020,470208,21,EE LIMITED,X00290,7,2020
Allerdale Borough Council,15703,Supplies & Services,IT Services,Call Charges,28/10/2020,470209,559.97,BRITISH TELECOM PLC,A00363,7,2020
Allerdale Borough Council,15703,Supplies & Services,IT Services,Call Charges,14/10/2020,470210,873.39,BRITISH TELECOMMUNICATIONS,X00004,7,2020
Allerdale Borough Council,15100,Supplies & Services,Domestic Abuse Funding,"Budget-Equipment, Furniture & Materials",23/10/2020,470211,25,BARCLAYCARD COMMERCIAL,X00207,7,2020
Allerdale Borough Council,15403,Supplies & Services,Waste Company,Publications and Periodicals,22/10/2020,470212,359,BARCLAYCARD COMMERCIAL,X00207,7,2020
Allerdale Borough Council,15301,Supplies & Services,Waste Company,Uniforms,22/10/2020,470213,1184.25,BARCLAYCARD COMMERCIAL,X00207,7,2020
Allerdale Borough Council,15101,Supplies & Services,Head of Financial Services,Equipment Costs,23/10/2020,470214,7.65,BARCLAYCARD COMMERCIAL,X00207,7,2020
Allerdale Borough Council,15100,Supplies & Services,Rapid Rehousing Pathway (RRP),"Budget-Equipment, Furniture & Materials",23/10/2020,470215,80.93,BARCLAYCARD COMMERCIAL,X00207,7,2020
Allerdale Borough Council,15101,Supplies & Services,Homelessness,Equipment Costs,23/10/2020,470216,177.63,BARCLAYCARD COMMERCIAL,X00207,7,2020
Allerdale Borough Council,12101,Premises,Corporate Property Maintenance,External Maintenance & Decoration,14/10/2020,470217,13.48,Redacted information - included personal information ,M01854,7,2020
Allerdale Borough Council,15103,Supplies & Services,Workington Nature Partnership,Purchase of Materials,14/10/2020,470218,22.5,Redacted information - included personal information ,M01839,7,2020
Allerdale Borough Council,33113,Income,Building Control - Chargeable,Building Control Fees Income,14/10/2020,470219,50,Redacted information - included personal information ,M01923,7,2020
Allerdale Borough Council,15550,Supplies & Services,Arts Development,General-Service Related Fees,14/10/2020,470220,700,CUMBRIA CC ,A00066,7,2020
Allerdale Borough Council,54105,Capital Expenditure,Disabled Facilities Grants,Grants  Private Individuals (Capital),14/10/2020,470221,2250,HANDICARE ACCESSIBILITY LTD,X00211,7,2020
Allerdale Borough Council,54105,Capital Expenditure,Disabled Facilities Grants,Grants  Private Individuals (Capital),14/10/2020,470222,714,HOME GROUP LTD,M01586,7,2020
Allerdale Borough Council,33112,Income,Planning and Development,Planning Fees Income,14/10/2020,470223,98.33,PORTAL PLAN QUEST LTD,M01566,7,2020
Allerdale Borough Council,33113,Income,Building Control - Chargeable,Building Control Fees Income,14/10/2020,470224,780,Redacted information - included personal information ,M01924,7,2020
Allerdale Borough Council,33117,Income,Off-street - Owned,Car Parks - Income from Machines,,470225,5.67,Redacted information - included personal information ,M01925,7,2020
Allerdale Borough Council,16350,Supplies & Services,Prevention Fund,Miscellaneous Expenses,14/10/2020,470226,95.11,HOME GROUP LTD,M00999,7,2020
Allerdale Borough Council,15502,Supplies & Services,Legal Services,Land Registry Fees,23/10/2020,470227,60,HM LAND REGISTRY,A00505,7,2020
Allerdale Borough Council,15502,Supplies & Services,Legal Services,Land Registry Fees,06/10/2020,470228,39,HM LAND REGISTRY,A00505,7,2020
Allerdale Borough Council,15502,Supplies & Services,Legal Services,Land Registry Fees,13/10/2020,470229,63,HM LAND REGISTRY,A00505,7,2020
Allerdale Borough Council,14105,Transport,Allerdale Fleet,"Fuel, Lubricants & Consumables",,470230,350.9,BP OIL UK LTD ,X00022,7,2020
Allerdale Borough Council,14105,Transport,Property Services Pay Group,"Fuel, Lubricants & Consumables",,470231,364.74,BP OIL UK LTD ,X00022,7,2020
Allerdale Borough Council,54105,Capital Expenditure,Disabled Facilities Grants,Grants  Private Individuals (Capital),14/10/2020,470232,741.59,PARTNERSHIP IN PROPERTY MANAGEMENT LTD,X00120,7,2020
Allerdale Borough Council,54105,Capital Expenditure,Disabled Facilities Grants,Grants  Private Individuals (Capital),14/10/2020,470233,714,HOME GROUP LTD,M01586,7,2020
Allerdale Borough Council,54105,Capital Expenditure,Disabled Facilities Grants,Grants  Private Individuals (Capital),14/10/2020,470234,376.31,PARTNERSHIP IN PROPERTY MANAGEMENT LTD,X00120,7,2020
Allerdale Borough Council,54105,Capital Expenditure,Disabled Facilities Grants,Grants  Private Individuals (Capital),14/10/2020,470235,209.03,PARTNERSHIP IN PROPERTY MANAGEMENT LTD,X00120,7,2020
Allerdale Borough Council,54105,Capital Expenditure,Disabled Facilities Grants,Grants  Private Individuals (Capital),14/10/2020,470236,3399.8,PARTNERSHIP IN PROPERTY MANAGEMENT LTD,X00120,7,2020
Allerdale Borough Council,54105,Capital Expenditure,Disabled Facilities Grants,Grants  Private Individuals (Capital),14/10/2020,470237,1970,DOLPHIN STAIRLIFTS CUMBRIA,X00107,7,2020
Allerdale Borough Council,54105,Capital Expenditure,Disabled Facilities Grants,Grants  Private Individuals (Capital),14/10/2020,470238,5075,DOLPHIN STAIRLIFTS CUMBRIA,X00107,7,2020
Allerdale Borough Council,54105,Capital Expenditure,Disabled Facilities Grants,Grants  Private Individuals (Capital),14/10/2020,470239,2145,DOLPHIN STAIRLIFTS CUMBRIA,X00107,7,2020
Allerdale Borough Council,54105,Capital Expenditure,Disabled Facilities Grants,Grants  Private Individuals (Capital),14/10/2020,470240,2170,DOLPHIN STAIRLIFTS CUMBRIA,X00107,7,2020
Allerdale Borough Council,54105,Capital Expenditure,Disabled Facilities Grants,Grants  Private Individuals (Capital),14/10/2020,470241,4975,DOLPHIN STAIRLIFTS CUMBRIA,X00107,7,2020
Allerdale Borough Council,54105,Capital Expenditure,Disabled Facilities Grants,Grants  Private Individuals (Capital),14/10/2020,470242,2182.23,PRISM MEDICAL UK,X00195,7,2020
Allerdale Borough Council,21101,Transfer Payments,Assistance - Housing Services,Private Individuals,14/10/2020,470243,42.99,Redacted information - included personal information ,M01917,7,2020
Allerdale Borough Council,20150,Third Party Payments,Festivals & Events,General Partnership Service Fees,23/10/2020,470244,150,BARCLAYCARD COMMERCIAL ,X00207,7,2020
Allerdale Borough Council,20150,Third Party Payments,Festivals & Events,General Partnership Service Fees,14/10/2020,470245,-304.96,ELSWORTH COMMUNICATIONS,A01869,7,2020
Allerdale Borough Council,33117,Income,Off-street - Owned,Car Parks - Income from Machines,14/10/2020,470246,6.58,Redacted information - included personal information ,M01926,7,2020
Allerdale Borough Council,33117,Income,Off-street - Owned,Car Parks - Income from Machines,14/10/2020,470247,4.67,Redacted information - included personal information ,M01927,7,2020
Allerdale Borough Council,33112,Income,Planning and Development,Planning Fees Income,14/10/2020,470248,206,Redacted information - included personal information ,M01928,7,2020
Allerdale Borough Council,33112,Income,Planning and Development,Planning Fees Income,14/10/2020,470249,206,Redacted information - included personal information ,M01929,7,2020
Allerdale Borough Council,20150,Third Party Payments,Festivals & Events,General Partnership Service Fees,21/10/2020,470250,2000,NEWSQUEST MEDIA GROUP,A02348,7,2020
Allerdale Borough Council,12405,Premises,Homelessness,Rentals and Lease Charges,14/10/2020,470251,6114.29,CASTLES & COASTS HOUSING ASSOCIATION LTD,A02465,7,2020
Allerdale Borough Council,15100,Supplies & Services,Homelessness,"Budget-Equipment, Furniture & Materials",14/10/2020,470252,194.63,CASTLES & COASTS HOUSING ASSOCIATION LTD,A02465,7,2020
Allerdale Borough Council,20302,Third Party Payments,Street Cleansing,Contract Services-Street Cleansing,14/10/2020,470253,1150,CUMBRIA WASTE MANAGEMENT LTD,A01304,7,2020
Allerdale Borough Council,21150,Transfer Payments,Carnegie Trust Contribution,General Grants,14/10/2020,470254,6250,CARNEGIE THEATRE TRUST,R00015,7,2020
Allerdale Borough Council,81602,Balance Sheet,General Fund,Prov-Insurance Excess (Balance Sheet),14/10/2020,470255,5000,ZURICH MUNICIPAL,A00429,7,2020
Allerdale Borough Council,12301,Premises,Multi Storey Car Park Utilities & Maint,Security,14/10/2020,470256,120,COMPASS SERVICES GROUP,A00839,7,2020
Allerdale Borough Council,15506,Supplies & Services,Maryport FHS Project,Professional Services,14/10/2020,470257,220,UNBLOCK CUMBRIA LTD,C00005,7,2020
Allerdale Borough Council,16101,Supplies & Services,Planning and Development,Statutory Notices,04/11/2020,470258,360.36,NEWSQUEST MEDIA GROUP,A02348,7,2020
Allerdale Borough Council,12201,Premises,Corporate Property Maintenance,Internal Maintenance,21/10/2020,470259,541.67,PREMIER BLINDS & CURTAINS LTD,A02776,7,2020
Allerdale Borough Council,15601,Supplies & Services,Corporate Postage and Stationary,Postage,14/10/2020,470260,957.65,UK MAIL GROUP PLC,A02371,7,2020
Allerdale Borough Council,15601,Supplies & Services,Corporate Postage and Stationary,Postage,14/10/2020,470261,589.37,UK MAIL GROUP PLC,A02371,7,2020
Allerdale Borough Council,15601,Supplies & Services,Corporate Postage and Stationary,Postage,14/10/2020,470262,2294.74,UK MAIL GROUP PLC,A02371,7,2020
Allerdale Borough Council,15101,Supplies & Services,Members Services,Equipment Costs,14/10/2020,470263,2000,CIVICA UK LIMITED,A00006,7,2020
Allerdale Borough Council,20150,Third Party Payments,Festivals & Events,General Partnership Service Fees,14/10/2020,470264,1250,ELSWORTH COMMUNICATIONS,A01869,7,2020
Allerdale Borough Council,15506,Supplies & Services,Legal Services,Professional Services,14/10/2020,470265,912.9,BEVAN BRITTAN LLP,A02181,7,2020
Allerdale Borough Council,15101,Supplies & Services,Workington Nature Partnership,Equipment Costs,14/10/2020,470266,458.3,BEES CUMBRIA LTD,A02780,7,2020
Allerdale Borough Council,14104,Transport,Property Services Pay Group,Repairs & Maintenance,14/10/2020,470267,280.41,MICHELDEVER TYRE SERVICES,A02368,7,2020
Allerdale Borough Council,15506,Supplies & Services,Economic Regeneration,Professional Services,21/10/2020,470268,23381.92,WINNING MOVES LTD,A02740,7,2020
Allerdale Borough Council,12300,Premises,Markets,Budget-Facilities Management,14/10/2020,470269,6075,Redacted information - included personal information ,A02801,7,2020
Allerdale Borough Council,15601,Supplies & Services,Corporate Postage and Stationary,Postage,14/10/2020,470270,1.85,ROYAL MAIL LETTERS,X00021,7,2020
Allerdale Borough Council,15601,Supplies & Services,Corporate Postage and Stationary,Postage,14/10/2020,470271,62.25,ROYAL MAIL LETTERS,X00021,7,2020
Allerdale Borough Council,15506,Supplies & Services,Assistance - Housing Services,Professional Services,21/10/2020,470272,8587.14,CUMBRIA CC,A00066,7,2020
Allerdale Borough Council,12301,Premises,Corporate Property Maintenance,Security,21/10/2020,470273,700,PWS SYSTEMS CUMBRIA LTD,C00237,7,2020
Allerdale Borough Council,15810,Supplies & Services,IT Services,Software Licences,04/11/2020,470274,8532,PHOENIX SOFTWARE LTD,A00229,7,2020
Allerdale Borough Council,73102,Holding and Control Accounts,Capital Project Retentions,Holding Accounts General - Expenditure,04/11/2020,470275,58737.49,HISTORIC PROPERTY RESTORATIONS LIMITED,C00150,7,2020
Allerdale Borough Council,15501,Supplies & Services,Building Control - Chargeable,Consultants Fees,21/10/2020,470276,139,ASHCROFT DEMOLITION (CUMBRIA) LTD,C00197,7,2020
Allerdale Borough Council,15506,Supplies & Services,Street Scene,Professional Services,04/11/2020,470277,562.5,CGDM LTD ,A02720,7,2020
Allerdale Borough Council,15506,Supplies & Services,Building Control - Chargeable,Professional Services,21/10/2020,470278,319,ASHCROFT DEMOLITION (CUMBRIA) LTD,C00197,7,2020
Allerdale Borough Council,15506,Supplies & Services,Building Control - Chargeable,Professional Services,21/10/2020,470279,480,ASHCROFT DEMOLITION (CUMBRIA) LTD,C00197,7,2020
Allerdale Borough Council,16003,Supplies & Services,Off-street - Owned,Security of Cash Movements,28/10/2020,470280,2225.85,G4S CASH SOLUTIONS (UK) LTD,A02421,7,2020
Allerdale Borough Council,20101,Third Party Payments,Recycling,Cleansing Contract,21/10/2020,470281,68281.13,CUMBRIA WASTE MANAGEMENT LTD,A01304,7,2020
Allerdale Borough Council,14101,Transport,Allerdale Fleet,Vehicle Leasing,21/10/2020,470282,3325,DOBIES VAUXHALL,A00254,7,2020
Allerdale Borough Council,16102,Supplies & Services,Social Impact Investment Fund,Regeneration Initiatives,21/10/2020,470283,37574.45,MOTT MACDONALD LTD,C00161,7,2020
Allerdale Borough Council,12101,Premises,Car Parks Inspection & Maintenance,External Maintenance & Decoration,21/10/2020,470284,768.96,CUMBRIA CC,A00066,7,2020
Allerdale Borough Council,51101,Capital Expenditure,Solway coast multi-user pathway,External Contractor Payments (Capital),21/10/2020,470285,110628.88,ERIC WRIGHT CIVIL ENGINEERING LTD,C00241,7,2020
Allerdale Borough Council,12101,Premises,Corporate Property Maintenance,External Maintenance & Decoration,21/10/2020,470286,11738.35,STOBBARTS LIMITED,C00204,7,2020
Allerdale Borough Council,10114,Employee Costs,Planning and Development,Agency to Cover Established Post,21/10/2020,470287,596.81,ADECCO RECRUITMENT,A00188,7,2020
Allerdale Borough Council,10401,Employee Costs,Housing Improvement,Agency Staff Costs,21/10/2020,470288,1500,G2 RECRUITMENT SOLUTIONS LTD,C00198,7,2020
Allerdale Borough Council,10401,Employee Costs,Housing Improvement,Agency Staff Costs,21/10/2020,470289,1480,G2 RECRUITMENT SOLUTIONS LTD,C00198,7,2020
Allerdale Borough Council,15516,Supplies & Services,Insurances,Insurance Services,21/10/2020,470290,6900,JELF INS BROKERS LTD ,A02549,7,2020
Allerdale Borough Council,10200,Employee Costs,Human Resources Pay Group,Budget-Employee Expenses,,470291,3.05,K&R BADGES LIMITED,A01328,7,2020
Allerdale Borough Council,10500,Employee Costs,Corporate Recruitment,Budget-Recruitment Expenses,,470292,300,PREPARED MEDIA LTD,A02707,7,2020
Allerdale Borough Council,14201,Transport,Programme Director for Maryport Regenera,Public Transport,22/10/2020,470293,8.7,BARCLAYCARD COMMERCIAL ,X00207,7,2020
Allerdale Borough Council,15302,Supplies & Services,COVID19 - General Costs,Protective Clothing,23/10/2020,470294,491.11,BARCLAYCARD COMMERCIAL,X00207,7,2020
Allerdale Borough Council,14203,Transport,Housing Improvement,Mileage Allowances - Car,21/10/2020,470295,127.8,Redacted information - included personal information ,M01611,7,2020
Allerdale Borough Council,15502,Supplies & Services,Assistance - Housing Services,Land Registry Fees,23/10/2020,470296,9,HM LAND REGISTRY,A00505,7,2020
Allerdale Borough Council,15502,Supplies & Services,Legal Services,Land Registry Fees,23/10/2020,470297,12,HM LAND REGISTRY,A00505,7,2020
Allerdale Borough Council,15502,Supplies & Services,Legal Services,Land Registry Fees,23/10/2020,470298,12,HM LAND REGISTRY,A00505,7,2020
Allerdale Borough Council,14105,Transport,Allerdale Fleet,"Fuel, Lubricants & Consumables",,470299,423.58,BP OIL UK LTD,X00022,7,2020
Allerdale Borough Council,54105,Capital Expenditure,Disabled Facilities Grants,Grants  Private Individuals (Capital),21/10/2020,470300,2245,DOLPHIN STAIRLIFTS CUMBRIA,X00107,7,2020
Allerdale Borough Council,16301,Supplies & Services,Sports Development,Reimbursement,21/10/2020,470301,5000,TRUSTEES ASPATRIA HORNETS RLFC,M01930,7,2020
Allerdale Borough Council,33118,Income,Off-street - Owned,Car Parks - Season Tickets Income,21/10/2020,470302,29.45,Redacted information - included personal information ,M01931,7,2020
Allerdale Borough Council,12101,Premises,Public Convenience Cleaning,External Maintenance & Decoration,21/10/2020,470303,89.13,Redacted information - included personal information ,C00030,7,2020
Allerdale Borough Council,12202,Premises,Corporate Property Maintenance,Electrical Repairs and Service,21/10/2020,470304,2260,CITY ELECTRICAL FACTORS,A00395,7,2020
Allerdale Borough Council,15505,Supplies & Services,Planning and Development,Licences,21/10/2020,470305,11.12,CENTREMAPS,A00512,7,2020
Allerdale Borough Council,12101,Premises,Corporate Property Maintenance,External Maintenance & Decoration,21/10/2020,470306,1096,Redacted information - included personal information ,A00176,7,2020
Allerdale Borough Council,15100,Supplies & Services,Health and Safety,"Budget-Equipment, Furniture & Materials",28/10/2020,470307,56.94,SETON,A01435,7,2020
Allerdale Borough Council,12101,Premises,Corporate Property Maintenance,External Maintenance & Decoration,04/11/2020,470308,7.03,FAST KEY SERVICES LTD,A01537,7,2020
Allerdale Borough Council,15401,Supplies & Services,Corporate Postage and Stationary,General Stationery,21/10/2020,470309,-6.83,LYRECO,A00043,7,2020
Allerdale Borough Council,15703,Supplies & Services,IT Services,Call Charges,28/10/2020,470310,1956.33,BRITISH TELECOM PLC,A00363,7,2020
Allerdale Borough Council,12401,Premises,Corporate Property Maintenance,Energy Management Charges,21/10/2020,470311,250,ESOS ENERGY LTD,A02785,7,2020
Allerdale Borough Council,15102,Supplies & Services,Recycling,Equipment Repair & Maintenance,28/10/2020,470312,28431.7,TIVOLI GROUP LTD,A02568,7,2020
Allerdale Borough Council,12103,Premises,Siddick Pond - Water Environment Grant,Grounds Maintenance,21/10/2020,470313,2380,TIVOLI GROUP LTD,A02568,7,2020
Allerdale Borough Council,16301,Supplies & Services,Sports Development,Reimbursement,21/10/2020,470314,398,TIVOLI GROUP LTD,A02568,7,2020
Allerdale Borough Council,12103,Premises,Parks and Grounds Maintenance,Grounds Maintenance,,470315,340,TIVOLI GROUP LTD,A02568,7,2020
Allerdale Borough Council,16301,Supplies & Services,Sports Development,Reimbursement,,470316,540,TIVOLI GROUP LTD,A02568,7,2020
Allerdale Borough Council,20300,Third Party Payments,Maryport Wave,Budget-Contract Services,21/10/2020,470317,15953.33,GREENWICH LEISURE LTD,A00136,7,2020
Allerdale Borough Council,15501,Supplies & Services,Off-street - Owned,Consultants Fees,04/11/2020,470318,668,BRITISH PARKING ASSOCIATION,A00468,7,2020
Allerdale Borough Council,12101,Premises,Environmental Initiatives,External Maintenance & Decoration,21/10/2020,470319,243,Redacted information - included personal information ,A00176,7,2020
Allerdale Borough Council,20300,Third Party Payments,Sports & Leisure Centres,Budget-Contract Services,21/10/2020,470320,53373,GREENWICH LEISURE LTD (PREV CARLISLE LEISURE),A00136,7,2020
Allerdale Borough Council,12405,Premises,NSAP,Rentals and Lease Charges,21/10/2020,470321,525,CUMBERLAND HOTEL,A02415,7,2020
Allerdale Borough Council,12405,Premises,NSAP,Rentals and Lease Charges,21/10/2020,470322,315,CUMBERLAND HOTEL,A02415,7,2020
Allerdale Borough Council,12405,Premises,NSAP,Rentals and Lease Charges,21/10/2020,470323,385,CUMBERLAND HOTEL,A02415,7,2020
Allerdale Borough Council,12405,Premises,NSAP,Rentals and Lease Charges,21/10/2020,470324,315,CUMBERLAND HOTEL,A02415,7,2020
Allerdale Borough Council,12405,Premises,NSAP,Rentals and Lease Charges,21/10/2020,470325,315,CUMBERLAND HOTEL,A02415,7,2020
Allerdale Borough Council,12405,Premises,NSAP,Rentals and Lease Charges,21/10/2020,470326,315,CUMBERLAND HOTEL,A02415,7,2020
Allerdale Borough Council,12405,Premises,NSAP,Rentals and Lease Charges,21/10/2020,470327,315,CUMBERLAND HOTEL,A02415,7,2020
Allerdale Borough Council,12405,Premises,NSAP,Rentals and Lease Charges,21/10/2020,470328,385,CUMBERLAND HOTEL,A02415,7,2020
Allerdale Borough Council,12405,Premises,NSAP,Rentals and Lease Charges,21/10/2020,470329,385,CUMBERLAND HOTEL,A02415,7,2020
Allerdale Borough Council,12405,Premises,NSAP,Rentals and Lease Charges,21/10/2020,470330,385,CUMBERLAND HOTEL,A02415,7,2020
Allerdale Borough Council,12405,Premises,NSAP,Rentals and Lease Charges,21/10/2020,470331,315,CUMBERLAND HOTEL,A02415,7,2020
Allerdale Borough Council,12405,Premises,NSAP,Rentals and Lease Charges,21/10/2020,470332,385,CUMBERLAND HOTEL,A02415,7,2020
Allerdale Borough Council,12405,Premises,NSAP,Rentals and Lease Charges,21/10/2020,470333,385,CUMBERLAND HOTEL,A02415,7,2020
Allerdale Borough Council,12405,Premises,NSAP,Rentals and Lease Charges,21/10/2020,470334,385,CUMBERLAND HOTEL,A02415,7,2020
Allerdale Borough Council,12405,Premises,NSAP,Rentals and Lease Charges,21/10/2020,470335,385,CUMBERLAND HOTEL,A02415,7,2020
Allerdale Borough Council,12405,Premises,NSAP,Rentals and Lease Charges,21/10/2020,470336,525,CUMBERLAND HOTEL,A02415,7,2020
Allerdale Borough Council,12405,Premises,NSAP,Rentals and Lease Charges,21/10/2020,470337,385,CUMBERLAND HOTEL,A02415,7,2020
Allerdale Borough Council,12405,Premises,NSAP,Rentals and Lease Charges,21/10/2020,470338,315,CUMBERLAND HOTEL,A02415,7,2020
Allerdale Borough Council,12405,Premises,NSAP,Rentals and Lease Charges,21/10/2020,470339,275,CUMBERLAND HOTEL,A02415,7,2020
Allerdale Borough Council,15507,Supplies & Services,Land Charges Service,Searches,21/10/2020,470340,480,CUMBRIA CC ,A00066,7,2020
Allerdale Borough Council,15507,Supplies & Services,Land Charges Service,Searches,21/10/2020,470341,760,LAKE DISTRICT NATIONAL PARK AUTHORITY,A00415,7,2020
Allerdale Borough Council,12405,Premises,NSAP,Rentals and Lease Charges,21/10/2020,470342,385,CUMBERLAND HOTEL,A02415,7,2020
Allerdale Borough Council,15810,Supplies & Services,Trade Waste,Software Licences,28/10/2020,470343,1942,WHITESPACE WORK SOFTWARE,A02678,7,2020
Allerdale Borough Council,12101,Premises,Harrington Harbour,External Maintenance & Decoration,21/10/2020,470344,159.14,TAYLOR'S JOINERY & PLASTICS LTD,C00181,7,2020
Allerdale Borough Council,12101,Premises,Ladore Toilets - Conversion,External Maintenance & Decoration,21/10/2020,470345,654,"FENCING, DECKING & GARDEN SERVICES CUMBRIA",C00242,7,2020
Allerdale Borough Council,10401,Employee Costs,Licensing Agency Staff,Agency Staff Costs,21/10/2020,470346,621.01,ADECCO RECRUITMENT,A00188,7,2020
Allerdale Borough Council,12402,Premises,Car Parks Inspection & Maintenance,Electricity,21/10/2020,470347,99.15,N POWER,X00015,7,2020
Allerdale Borough Council,12402,Premises,Corporate Property Maintenance,Electricity,21/10/2020,470348,458.69,N POWER,X00015,7,2020
Allerdale Borough Council,14202,Transport,IT Services Pay Group,Hire Car and petrol,21/10/2020,470349,163.04,ENTERPRISE RENT A CAR,A01367,7,2020
Allerdale Borough Council,12405,Premises,NSAP,Rentals and Lease Charges,21/10/2020,470350,385,READ GUESTHOUSE,A02591,7,2020
Allerdale Borough Council,12405,Premises,NSAP,Rentals and Lease Charges,21/10/2020,470351,385,READ GUESTHOUSE,A02591,7,2020
Allerdale Borough Council,12405,Premises,NSAP,Rentals and Lease Charges,21/10/2020,470352,490,READ GUESTHOUSE,A02591,7,2020
Allerdale Borough Council,12405,Premises,NSAP,Rentals and Lease Charges,21/10/2020,470353,385,READ GUESTHOUSE,A02591,7,2020
Allerdale Borough Council,12309,Premises,Corporate Property Maintenance,Fire and Safety,21/10/2020,470354,73.6,ORIAN SOLUTIONS LTD,A01814,7,2020
Allerdale Borough Council,12309,Premises,Corporate Property Maintenance,Fire and Safety,21/10/2020,470355,108.34,ORIAN SOLUTIONS LTD,A01814,7,2020
Allerdale Borough Council,12402,Premises,Footway Lighting,Electricity,21/10/2020,470356,5848.3,N POWER,X00015,7,2020
Allerdale Borough Council,12402,Premises,Multi Storey Car Park Utilities & Maint,Electricity,21/10/2020,470357,1689.02,N POWER,X00015,7,2020
Allerdale Borough Council,12402,Premises,Corporate Property Maintenance,Electricity,21/10/2020,470358,1409.3,N POWER,X00015,7,2020
Allerdale Borough Council,12402,Premises,Corporate Property Maintenance,Electricity,21/10/2020,470359,2734.44,N POWER,X00015,7,2020
Allerdale Borough Council,12101,Premises,Corporate Property Maintenance,External Maintenance & Decoration,21/10/2020,470360,-122.73,TAYLOR'S JOINERY & PLASTICS LTD,C00181,7,2020
Allerdale Borough Council,15810,Supplies & Services,IT Services,Software Licences,28/10/2020,470361,7480,ABAVUS LIMITED,A02252,7,2020
Allerdale Borough Council,15811,Supplies & Services,IT Services,Software Maintenance,28/10/2020,470362,35995,ABAVUS LIMITED,A02252,7,2020
Allerdale Borough Council,15402,Supplies & Services,Multi-functional Printers,Photocopier Charges,28/10/2020,470363,6.5,KONICA MINOLTA BUSINESS SOLUTIONS UK LTD,A01556,7,2020
Allerdale Borough Council,15402,Supplies & Services,Multi-functional Printers,Photocopier Charges,04/11/2020,470364,1605.69,KONICA MINOLTA BUSINESS SOLUTIONS UK LTD,A01556,7,2020
Allerdale Borough Council,15402,Supplies & Services,Multi-functional Printers,Photocopier Charges,04/11/2020,470365,103.17,KONICA MINOLTA BUSINESS SOLUTIONS UK LTD,A01556,7,2020
Allerdale Borough Council,15803,Supplies & Services,IT Services,Hardware Purchase,04/11/2020,470366,145.04,PROBRAND,A00040,7,2020
Allerdale Borough Council,12101,Premises,Maryport Regeneration,External Maintenance & Decoration,28/10/2020,470367,510,TIVOLI GROUP LTD,A02568,7,2020
Allerdale Borough Council,15101,Supplies & Services,COVID19 - General Costs,Equipment Costs,28/10/2020,470368,406.32,ROMAR INNOVATE LTD,A02293,7,2020
Allerdale Borough Council,10401,Employee Costs,Housing Improvement,Agency Staff Costs,28/10/2020,470369,712.5,G2 RECRUITMENT SOLUTIONS LTD,C00198,7,2020
Allerdale Borough Council,12202,Premises,Multi Storey Car Park Utilities & Maint,Electrical Repairs and Service,28/10/2020,470370,2436.4,JJ GROUP (CONTRACTING) LTD,C00038,7,2020
Allerdale Borough Council,12301,Premises,Multi Storey Car Park Utilities & Maint,Security,28/10/2020,470371,120,COMPASS SERVICES GROUP,A00839,7,2020
Allerdale Borough Council,26000,Earmarked Reserves,Legal Counsel,Budget-Expd funded from Reserve,,470372,95,Redacted information - included personal information ,A02529,7,2020
Allerdale Borough Council,12101,Premises,Maryport FHS Project,External Maintenance & Decoration,28/10/2020,470373,155,THOMAS ARMSTRONG - CONSTRUCTION,C00003,7,2020
Allerdale Borough Council,15501,Supplies & Services,Building Control - Chargeable,Consultants Fees,28/10/2020,470374,46,PK ELECTRICAL (CARLISLE) LTD,A00778,7,2020
Allerdale Borough Council,12402,Premises,Multi Storey Car Park Utilities & Maint,Electricity,28/10/2020,470375,220,N POWER,X00015,7,2020
Allerdale Borough Council,10114,Employee Costs,Planning and Development,Agency to Cover Established Post,28/10/2020,470376,596.81,ADECCO RECRUITMENT,A00188,7,2020
Allerdale Borough Council,15100,Supplies & Services,Rapid Rehousing Pathway (RRP),"Budget-Equipment, Furniture & Materials",28/10/2020,470377,250,Redacted information - included personal information ,A02762,7,2020
Allerdale Borough Council,15100,Supplies & Services,Rapid Rehousing Pathway (RRP),"Budget-Equipment, Furniture & Materials",28/10/2020,470378,40,Redacted information - included personal information ,A02762,7,2020
Allerdale Borough Council,15100,Supplies & Services,Rapid Rehousing Pathway (RRP),"Budget-Equipment, Furniture & Materials",28/10/2020,470379,75,Redacted information - included personal information ,A02762,7,2020
Allerdale Borough Council,15100,Supplies & Services,Rapid Rehousing Pathway (RRP),"Budget-Equipment, Furniture & Materials",28/10/2020,470380,125,Redacted information - included personal information ,A02762,7,2020
Allerdale Borough Council,15100,Supplies & Services,Homelessness,"Budget-Equipment, Furniture & Materials",28/10/2020,470381,161.67,CUMBRIA SUPERGLAZE,A00982,7,2020
Allerdale Borough Council,12405,Premises,NSAP,Rentals and Lease Charges,28/10/2020,470382,385,CUMBERLAND HOTEL,A02415,7,2020
Allerdale Borough Council,12405,Premises,NSAP,Rentals and Lease Charges,28/10/2020,470383,385,READ GUESTHOUSE,A02591,7,2020
Allerdale Borough Council,12405,Premises,NSAP,Rentals and Lease Charges,28/10/2020,470384,385,READ GUESTHOUSE,A02591,7,2020
Allerdale Borough Council,12405,Premises,NSAP,Rentals and Lease Charges,28/10/2020,470385,275,READ GUESTHOUSE,A02591,7,2020
Allerdale Borough Council,12405,Premises,NSAP,Rentals and Lease Charges,28/10/2020,470386,490,READ GUESTHOUSE,A02591,7,2020
Allerdale Borough Council,12405,Premises,NSAP,Rentals and Lease Charges,28/10/2020,470387,385,READ GUESTHOUSE,A02591,7,2020
Allerdale Borough Council,12405,Premises,NSAP,Rentals and Lease Charges,28/10/2020,470388,270,CUMBERLAND HOTEL,A02415,7,2020
Allerdale Borough Council,12405,Premises,NSAP,Rentals and Lease Charges,28/10/2020,470389,385,CUMBERLAND HOTEL,A02415,7,2020
Allerdale Borough Council,12405,Premises,NSAP,Rentals and Lease Charges,28/10/2020,470390,385,CUMBERLAND HOTEL,A02415,7,2020
Allerdale Borough Council,12405,Premises,NSAP,Rentals and Lease Charges,28/10/2020,470391,315,CUMBERLAND HOTEL,A02415,7,2020
Allerdale Borough Council,12405,Premises,NSAP,Rentals and Lease Charges,28/10/2020,470392,440,CUMBERLAND HOTEL,A02415,7,2020
Allerdale Borough Council,12405,Premises,NSAP,Rentals and Lease Charges,28/10/2020,470393,220,CUMBERLAND HOTEL,A02415,7,2020
Allerdale Borough Council,10401,Employee Costs,Housing Improvement,Agency Staff Costs,28/10/2020,470394,1480,G2 RECRUITMENT SOLUTIONS LTD,C00198,7,2020
Allerdale Borough Council,16101,Supplies & Services,Planning and Development,Statutory Notices,,470395,393.12,NEWSQUEST MEDIA GROUP,A02348,7,2020
Allerdale Borough Council,16101,Supplies & Services,Planning and Development,Statutory Notices,,470396,393.12,NEWSQUEST MEDIA GROUP,A02348,7,2020
Allerdale Borough Council,10202,Employee Costs,Human Resources Pay Group,Medical Screening,28/10/2020,470397,45,LIZ HUNTER PHYSIOTHERAPY LTD,A02799,7,2020
Allerdale Borough Council,15100,Supplies & Services,Pest Control,"Budget-Equipment, Furniture & Materials",04/11/2020,470398,24.82,ARCO LIMITED - HEAD OFFICE HULL,A00045,7,2020
Allerdale Borough Council,12405,Premises,NSAP,Rentals and Lease Charges,28/10/2020,470399,525,CUMBERLAND HOTEL,A02415,7,2020
Allerdale Borough Council,12405,Premises,NSAP,Rentals and Lease Charges,28/10/2020,470400,385,CUMBERLAND HOTEL,A02415,7,2020
Allerdale Borough Council,12405,Premises,NSAP,Rentals and Lease Charges,28/10/2020,470401,385,CUMBERLAND HOTEL,A02415,7,2020
Allerdale Borough Council,12405,Premises,NSAP,Rentals and Lease Charges,28/10/2020,470402,385,CUMBERLAND HOTEL,A02415,7,2020
Allerdale Borough Council,12402,Premises,Tenanted Properties,Electricity,28/10/2020,470403,7.1,N POWER,X00015,7,2020
Allerdale Borough Council,12402,Premises,Tenanted Properties,Electricity,28/10/2020,470404,7.1,N POWER ,X00015,7,2020
Allerdale Borough Council,12402,Premises,Tenanted Properties,Electricity,28/10/2020,470405,142.35,OPUS ENERGY,X00226,7,2020
Allerdale Borough Council,12402,Premises,Tenanted Properties,Electricity,28/10/2020,470406,53.17,OPUS ENERGY,X00226,7,2020
Allerdale Borough Council,12402,Premises,Tenanted Properties,Electricity,28/10/2020,470407,46.6,OPUS ENERGY,X00226,7,2020
Allerdale Borough Council,12402,Premises,Tenanted Properties,Electricity,28/10/2020,470408,45.77,OPUS ENERGY,X00226,7,2020
Allerdale Borough Council,12402,Premises,Tenanted Properties,Electricity,28/10/2020,470409,7.33,N POWER,X00015,7,2020
Allerdale Borough Council,12402,Premises,Tenanted Properties,Electricity,28/10/2020,470410,15.43,N POWER,X00015,7,2020
Allerdale Borough Council,12402,Premises,Tenanted Properties,Electricity,28/10/2020,470411,7.33,N POWER,X00015,7,2020
Allerdale Borough Council,12402,Premises,Tenanted Properties,Electricity,28/10/2020,470412,52.15,OPUS ENERGY,X00226,7,2020
Allerdale Borough Council,12402,Premises,Tenanted Properties,Electricity,28/10/2020,470413,45.84,OPUS ENERGY,X00226,7,2020
Allerdale Borough Council,12402,Premises,Tenanted Properties,Electricity,28/10/2020,470414,7.33,N POWER ,X00015,7,2020
Allerdale Borough Council,12402,Premises,Tenanted Properties,Electricity,28/10/2020,470415,23.49,N POWER ,X00015,7,2020
Allerdale Borough Council,15804,Supplies & Services,IT Services,Computer Data Lines B.T.,28/10/2020,470416,36147.18,BRITISH TELECOMMUNICATIONS,X00004,7,2020
Allerdale Borough Council,35106,Income,Homelessness,Dwellings Income,28/10/2020,470417,10.38,ALLERDALE,A00342,7,2020
Allerdale Borough Council,12402,Premises,Corporate Property Maintenance,Electricity,28/10/2020,470418,8.11,N POWER,X00015,7,2020
Allerdale Borough Council,12402,Premises,Corporate Property Maintenance,Electricity,28/10/2020,470419,7.09,N POWER,X00015,7,2020
Allerdale Borough Council,12402,Premises,Corporate Property Maintenance,Electricity,28/10/2020,470420,78.19,N POWER,X00015,7,2020
Allerdale Borough Council,12402,Premises,Corporate Property Maintenance,Electricity,28/10/2020,470421,7.96,N POWER,X00015,7,2020
Allerdale Borough Council,12402,Premises,Corporate Property Maintenance,Electricity,28/10/2020,470422,136.2,N POWER,X00015,7,2020
Allerdale Borough Council,12402,Premises,Corporate Property Maintenance,Electricity,28/10/2020,470423,23.96,N POWER,X00015,7,2020
Allerdale Borough Council,12402,Premises,Corporate Property Maintenance,Electricity,28/10/2020,470424,9.56,N POWER,X00015,7,2020
Allerdale Borough Council,12402,Premises,Corporate Property Maintenance,Electricity,28/10/2020,470425,51.87,N POWER,X00015,7,2020
Allerdale Borough Council,12402,Premises,Public Convenience Cleaning,Electricity,28/10/2020,470426,7.09,N POWER,X00015,7,2020
Allerdale Borough Council,12402,Premises,Corporate Property Maintenance,Electricity,28/10/2020,470427,75.97,N POWER,X00015,7,2020
Allerdale Borough Council,12402,Premises,Homelessness,Electricity,28/10/2020,470428,41.5,N POWER,X00015,7,2020
Allerdale Borough Council,12402,Premises,Homelessness,Electricity,28/10/2020,470429,21.79,N POWER,X00015,7,2020
Allerdale Borough Council,12402,Premises,Homelessness,Electricity,28/10/2020,470430,26.95,N POWER,X00015,7,2020
Allerdale Borough Council,12402,Premises,Homelessness,Electricity,28/10/2020,470431,7.5,N POWER,X00015,7,2020
Allerdale Borough Council,12402,Premises,Homelessness,Electricity,28/10/2020,470432,15.88,N POWER,X00015,7,2020
Allerdale Borough Council,12402,Premises,Homelessness,Electricity,28/10/2020,470433,62.55,N POWER,X00015,7,2020
Allerdale Borough Council,12402,Premises,Homelessness,Electricity,28/10/2020,470434,19.36,N POWER,X00015,7,2020
Allerdale Borough Council,12402,Premises,Homelessness,Electricity,28/10/2020,470435,18.91,N POWER,X00015,7,2020
Allerdale Borough Council,12402,Premises,Multi Storey Car Park Utilities & Maint,Electricity,28/10/2020,470436,7.09,N POWER,X00015,7,2020
Allerdale Borough Council,12402,Premises,Public Convenience Cleaning,Electricity,28/10/2020,470437,10.14,N POWER,X00015,7,2020
Allerdale Borough Council,12402,Premises,Car Parks Inspection & Maintenance,Electricity,28/10/2020,470438,13.34,N POWER,X00015,7,2020
Allerdale Borough Council,12402,Premises,Corporate Property Maintenance,Electricity,28/10/2020,470439,651.18,N POWER,X00015,7,2020
Allerdale Borough Council,12402,Premises,Multi Storey Car Park Utilities & Maint,Electricity,28/10/2020,470440,10.72,N POWER,X00015,7,2020
Allerdale Borough Council,12402,Premises,Public Convenience Cleaning,Electricity,28/10/2020,470441,24.68,N POWER,X00015,7,2020
Allerdale Borough Council,12402,Premises,Public Convenience Cleaning,Electricity,28/10/2020,470442,15.96,N POWER,X00015,7,2020
Allerdale Borough Council,12402,Premises,Public Convenience Cleaning,Electricity,28/10/2020,470443,51.87,N POWER,X00015,7,2020
Allerdale Borough Council,12402,Premises,Public Convenience Cleaning,Electricity,28/10/2020,470444,12.32,N POWER,X00015,7,2020
Allerdale Borough Council,12101,Premises,Corporate Property Maintenance,External Maintenance & Decoration,,470445,1118,BROXAP LIMITED,C00048,7,2020
Allerdale Borough Council,15100,Supplies & Services,Domestic Abuse Funding,"Budget-Equipment, Furniture & Materials",28/10/2020,470446,1643,CUMBRIA SUPERGLAZE,A00982,7,2020
Allerdale Borough Council,15506,Supplies & Services,Food and Occupational Health,Professional Services,,470447,436.94,PUBLIC HEALTH ENGLAND,A01839,7,2020
Allerdale Borough Council,16101,Supplies & Services,Licensing Service,Statutory Notices,,470448,976.18,NEWSQUEST MEDIA GROUP,A02348,7,2020
Allerdale Borough Council,12405,Premises,Customer Services Pay Group,Rentals and Lease Charges,28/10/2020,470449,1500,COCKERMOUTH TOWN COUNCIL,A00586,7,2020
Allerdale Borough Council,10401,Employee Costs,Environmental Protection,Agency Staff Costs,,470450,277.6,HAYS SPECIALIST RECRUITMENT LTD,A00280,7,2020
Allerdale Borough Council,12101,Premises,Corporate Property Maintenance,External Maintenance & Decoration,04/11/2020,470451,136,Redacted information - included personal information ,A00561,7,2020
Allerdale Borough Council,12201,Premises,Corporate Property Maintenance,Internal Maintenance,28/10/2020,470452,1674.25,TAYLOR'S JOINERY & PLASTICS LTD,C00181,7,2020
Allerdale Borough Council,16101,Supplies & Services,Licensing Service,Statutory Notices,,470453,360.36,NEWSQUEST MEDIA GROUP,A02348,7,2020
Allerdale Borough Council,15101,Supplies & Services,Corporate Property Maintenance,Equipment Costs,28/10/2020,470454,106.8,ARCO LIMITED,A00045,7,2020
Allerdale Borough Council,52106,Capital Expenditure,Solway coast multi-user pathway,Consultants Fees (Capital),,470455,-23701,BLOOM PROCUREMENT SERVICES,A02360,7,2020
Allerdale Borough Council,52106,Capital Expenditure,Solway coast multi-user pathway,Consultants Fees (Capital),,470456,-34376,BLOOM PROCUREMENT SERVICES,A02360,7,2020
Allerdale Borough Council,15101,Supplies & Services,Corporate Property Maintenance,Equipment Costs,28/10/2020,470457,-27.74,ARCO LIMITED,A00045,7,2020
Allerdale Borough Council,12405,Premises,Homelessness,Rentals and Lease Charges,,470458,16.41,BARCLAYCARD COMMERCIAL,X00207,7,2020
Allerdale Borough Council,15813,Supplies & Services,Finance and Accounting Pay Group,Software Miscellaneous,,470459,2121.97,BARCLAYCARD COMMERCIAL,X00207,7,2020
Allerdale Borough Council,10500,Employee Costs,Corporate Recruitment,Budget-Recruitment Expenses,29/10/2020,470460,398.73,BARCLAYCARD COMMERCIAL,X00207,7,2020
Allerdale Borough Council,15100,Supplies & Services,Rapid Rehousing Pathway (RRP),"Budget-Equipment, Furniture & Materials",,470461,471.78,BARCLAYCARD COMMERCIAL,X00207,7,2020
Allerdale Borough Council,15100,Supplies & Services,Rapid Rehousing Pathway (RRP),"Budget-Equipment, Furniture & Materials",,470462,76.51,BARCLAYCARD COMMERCIAL,X00207,7,2020
Allerdale Borough Council,10601,Employee Costs,Commissioning Support Pay Group,External Courses & Seminar Fees,29/10/2020,470463,132.15,BARCLAYCARD COMMERCIAL,X00207,7,2020
Allerdale Borough Council,15201,Supplies & Services,Mayoral Services,Entertainment Of Visitors,,470464,20,BARCLAYCARD COMMERCIAL,X00207,7,2020
Allerdale Borough Council,33117,Income,Off-street - Owned,Car Parks - Income from Machines,28/10/2020,470465,4.67,Redacted information - included personal information ,M01936,7,2020
Allerdale Borough Council,33117,Income,Off-street - Owned,Car Parks - Income from Machines,28/10/2020,470466,4.67,Redacted information - included personal information ,M01937,7,2020
Allerdale Borough Council,33117,Income,Off-street - Owned,Car Parks - Income from Machines,28/10/2020,470467,2.79,Redacted information - included personal information ,M01935,7,2020
Allerdale Borough Council,16350,Supplies & Services,Prevention Fund,Miscellaneous Expenses,28/10/2020,470468,95.8,HOME GROUP LTD,M00999,7,2020
Allerdale Borough Council,16301,Supplies & Services,Sports Development,Reimbursement,28/10/2020,470469,3318.75,COCKERMOUTH JUNIOR FOOTBALL CLUB,M01932,7,2020
Allerdale Borough Council,16301,Supplies & Services,Sports Development,Reimbursement,28/10/2020,470470,1350,GILCRUX VILLAGE HALL,M00078,7,2020
Allerdale Borough Council,16301,Supplies & Services,Sports Development,Reimbursement,28/10/2020,470471,500,WORKINGTON RAMBLING CLUB,M01933,7,2020
Allerdale Borough Council,16301,Supplies & Services,Sports Development,Reimbursement,28/10/2020,470472,3420,SEATON BOWLING CLUB,M01934,7,2020
Allerdale Borough Council,16301,Supplies & Services,Sports Development,Reimbursement,28/10/2020,470473,2025,THURSBY SPORTS & RECREATION,M01143,7,2020
Allerdale Borough Council,26000,Earmarked Reserves,Legal advice re GDPR,Budget-Expd funded from Reserve,28/10/2020,470493,21745.48,BRYAN CAVE LEIGHTON PAISNER LLP GENERAL CLIENT ACCOUNT,M01938,7,2020
Allerdale Borough Council,15101,Supplies & Services,Multi Storey Car Park Utilities & Maint,Equipment Costs,28/10/2020,470494,1388.9,WF CASCADE,A01794,7,2020
Allerdale Borough Council,15501,Supplies & Services,Planning and Development,Consultants Fees,04/11/2020,470495,1571,BOWFELL CONSULTING LTD,A02754,7,2020
Allerdale Borough Council,10202,Employee Costs,Health and Safety,Medical Screening,28/10/2020,470496,340,SPECSAVERS,A00026,7,2020
Allerdale Borough Council,12101,Premises,Corporate Property Maintenance,External Maintenance & Decoration,04/11/2020,470497,63,CUMBRIA CC,A00066,7,2020
Allerdale Borough Council,15811,Supplies & Services,IT Services,Software Maintenance,,470498,2932.21,PHOENIX SOFTWARE LTD,A00229,7,2020
Allerdale Borough Council,15508,Supplies & Services,IT Services,Subscriptions,04/11/2020,470499,1895,SOCITM LTD,A00168,7,2020
Allerdale Borough Council,15810,Supplies & Services,IT Services,Software Licences,,470500,171.6,LOGMEIN TECHNOLOGIES UK TD,A02565,7,2020
Allerdale Borough Council,20108,Third Party Payments,Corporate Management,Audit Fees,,470501,9264.75,GRANT THORNTON UK LLP,A01736,7,2020
Allerdale Borough Council,16101,Supplies & Services,Licensing Service,Statutory Notices,,470502,406.69,NEWSQUEST MEDIA GROUP,A02348,7,2020
Allerdale Borough Council,15100,Supplies & Services,Domestic Abuse Funding,"Budget-Equipment, Furniture & Materials",04/11/2020,470503,1137.5,AA CARPETS LTD,C00031,7,2020
Allerdale Borough Council,10401,Employee Costs,Housing Improvement,Agency Staff Costs,04/11/2020,470504,693.75,G2 RECRUITMENT SOLUTIONS LTD,C00198,7,2020
Allerdale Borough Council,15506,Supplies & Services,Maryport FHS Project,Professional Services,,470505,2500,FREETHS LLP,A01821,7,2020
Allerdale Borough Council,75103,Holding and Control Accounts,Payroll Suspense Account,PAYROLL October 2020 Travel & Subsistence  ,,,8094.04,INLAND REVENUE,X00038,5,2020
